[Event "Early-Titled-Tuesday-Blitz-October-10-2023"]
[Site "Chess.com"]
[Date "2023.10.10"]
[Round "4"]
[White "Fandorine"]
[Black "Grossboss19"]
[Result "1/2-1/2"]
[WhiteElo "2902"]
[BlackElo "2532"]
[TimeControl "180+1"]
[EndTime "8:39:48 PDT"]
[Termination "Game drawn - insufficient material"]

1. g3 {[%clk 0:03:00.9]} 1... g6 {[%clk 0:02:57.7]} 2. Bg2 {[%clk 0:03:00.7]}
2... Bg7 {[%clk 0:02:58.1]} 3. e4 {[%clk 0:03:01.4]} 3... e5 {[%clk 0:02:56.6]}
4. Ne2 {[%clk 0:03:01.2]} 4... Nc6 {[%clk 0:02:56.4]} 5. O-O {[%clk 0:03:01.7]}
5... Nge7 {[%clk 0:02:56.3]} 6. Nbc3 {[%clk 0:03:00.2]} 6... O-O {[%clk
0:02:56.2]} 7. d3 {[%clk 0:03:00.2]} 7... d6 {[%clk 0:02:54.5]} 8. f4 {[%clk
0:02:57.2]} 8... f5 {[%clk 0:02:53.4]} 9. Be3 {[%clk 0:02:54.9]} 9... fxe4
{[%clk 0:02:38.4]} 10. dxe4 {[%clk 0:02:54.2]} 10... Be6 {[%clk 0:02:36.3]} 11.
Qd2 {[%clk 0:02:45.3]} 11... Qd7 {[%clk 0:02:34.4]} 12. Nd5 {[%clk 0:02:43.2]}
12... Rac8 {[%clk 0:02:26.2]} 13. Rad1 {[%clk 0:02:08.2]} 13... Bh3 {[%clk
0:02:14.5]} 14. b3 {[%clk 0:02:02.5]} 14... Bxg2 {[%clk 0:02:12.3]} 15. Kxg2
{[%clk 0:02:02.2]} 15... Nxd5 {[%clk 0:02:02.6]} 16. Qxd5+ {[%clk 0:01:57.3]}
16... Kh8 {[%clk 0:01:58.5]} 17. h3 {[%clk 0:01:54.3]} 17... Rce8 {[%clk
0:01:56.2]} 18. fxe5 {[%clk 0:01:37.7]} 18... Bxe5 {[%clk 0:01:48.5]} 19. Bh6
{[%clk 0:01:25.7]} 19... Bg7 {[%clk 0:01:41.1]} 20. Rxf8+ {[%clk 0:01:20.9]}
20... Rxf8 {[%clk 0:01:39.2]} 21. Bxg7+ {[%clk 0:01:21.3]} 21... Qxg7 {[%clk
0:01:37]} 22. Nf4 {[%clk 0:01:22.2]} 22... Re8 {[%clk 0:01:33.8]} 23. Rf1 {[%clk
0:01:11]} 23... Qe7 {[%clk 0:01:26.5]} 24. Re1 {[%clk 0:01:01.3]} 24... Qe5
{[%clk 0:01:15.1]} 25. Qxe5+ {[%clk 0:00:54.9]} 25... Nxe5 {[%clk 0:01:14.2]}
26. Nd5 {[%clk 0:00:50.4]} 26... c6 {[%clk 0:01:11.2]} 27. Nc3 {[%clk
0:00:49.7]} 27... Kg7 {[%clk 0:01:09.5]} 28. Rd1 {[%clk 0:00:48.9]} 28... Re6
{[%clk 0:01:07.8]} 29. Ne2 {[%clk 0:00:48.9]} 29... Kf7 {[%clk 0:01:03.9]} 30.
Nf4 {[%clk 0:00:43.1]} 30... Rf6 {[%clk 0:01:03.9]} 31. c4 {[%clk 0:00:43.8]}
31... Ke7 {[%clk 0:01:01.4]} 32. Rd2 {[%clk 0:00:43.3]} 32... Rf8 {[%clk
0:00:50.2]} 33. a4 {[%clk 0:00:39.7]} 33... a5 {[%clk 0:00:47.9]} 34. h4 {[%clk
0:00:39.5]} 34... h6 {[%clk 0:00:41.2]} 35. Nh3 {[%clk 0:00:27.2]} 35... Nd7
{[%clk 0:00:34.1]} 36. Nf4 {[%clk 0:00:22.3]} 36... Rf6 {[%clk 0:00:29.7]} 37.
Nd3 {[%clk 0:00:20.1]} 37... g5 {[%clk 0:00:25.6]} 38. h5 {[%clk 0:00:19]} 38...
Re6 {[%clk 0:00:21.3]} 39. Kf3 {[%clk 0:00:16.7]} 39... Nf6 {[%clk 0:00:20.6]}
40. e5 {[%clk 0:00:17.1]} 40... dxe5 {[%clk 0:00:16.4]} 41. Nc5 {[%clk
0:00:17.5]} 41... e4+ {[%clk 0:00:15.1]} 42. Ke3 {[%clk 0:00:09.7]} 42... Re5
{[%clk 0:00:10.9]} 43. Nxb7 {[%clk 0:00:10.3]} 43... Nxh5 {[%clk 0:00:10.3]} 44.
Nd8 {[%clk 0:00:11]} 44... Rc5 {[%clk 0:00:04.4]} 45. Kd4 {[%clk 0:00:11.5]}
45... e3 {[%clk 0:00:03.9]} 46. Re2 {[%clk 0:00:11.4]} 46... Rf5 {[%clk
0:00:03.7]} 47. Nxc6+ {[%clk 0:00:11.3]} 47... Kd6 {[%clk 0:00:03.8]} 48. Na7
{[%clk 0:00:04.4]} 48... Nxg3 {[%clk 0:00:04]} 49. Rxe3 {[%clk 0:00:05.1]} 49...
Rf4+ {[%clk 0:00:04.1]} 50. Kd3 {[%clk 0:00:04.9]} 50... Nf5 {[%clk 0:00:04.4]}
51. Re8 {[%clk 0:00:04.8]} 51... Rf3+ {[%clk 0:00:04.3]} 52. Kd2 {[%clk
0:00:02.5]} 52... Rxb3 {[%clk 0:00:03.6]} 53. Nb5+ {[%clk 0:00:03.3]} 53... Kc5
{[%clk 0:00:03.9]} 54. Re5+ {[%clk 0:00:03.7]} 54... Kxc4 {[%clk 0:00:03.7]} 55.
Rxf5 {[%clk 0:00:04.4]} 55... Rb4 {[%clk 0:00:03.5]} 56. Nd6+ {[%clk 0:00:03.8]}
56... Kb3 {[%clk 0:00:03.2]} 57. Rxa5 {[%clk 0:00:03]} 57... Rxa4 {[%clk
0:00:03.7]} 58. Rd5 {[%clk 0:00:02.8]} 58... Ra2+ {[%clk 0:00:03]} 59. Ke3
{[%clk 0:00:03.1]} 59... Ra1 {[%clk 0:00:02.8]} 60. Rd3+ {[%clk 0:00:02.8]}
60... Kc2 {[%clk 0:00:02.9]} 61. Rd5 {[%clk 0:00:02.1]} 61... Re1+ {[%clk
0:00:02.7]} 62. Kf2 {[%clk 0:00:02.2]} 62... Rd1 {[%clk 0:00:03.1]} 63. Rc5+
{[%clk 0:00:02.8]} 63... Kb3 {[%clk 0:00:03.1]} 64. Ne4 {[%clk 0:00:03.4]} 64...
Rc1 {[%clk 0:00:03.1]} 65. Rf5 {[%clk 0:00:02.6]} 65... Rc2+ {[%clk 0:00:03]}
66. Ke3 {[%clk 0:00:03.1]} 66... Rh2 {[%clk 0:00:02]} 67. Rb5+ {[%clk
0:00:03.5]} 67... Kc4 {[%clk 0:00:02.1]} 68. Rc5+ {[%clk 0:00:03.6]} 68... Kb4
{[%clk 0:00:02.6]} 69. Rc8 {[%clk 0:00:04.3]} 69... Rh3+ {[%clk 0:00:02.2]} 70.
Kd4 {[%clk 0:00:04.9]} 70... Kb5 {[%clk 0:00:02.7]} 71. Nc3+ {[%clk 0:00:02.7]}
71... Kb6 {[%clk 0:00:02.6]} 72. Nd5+ {[%clk 0:00:03.5]} 72... Kb7 {[%clk
0:00:03.1]} 73. Rc7+ {[%clk 0:00:04.2]} 73... Kb8 {[%clk 0:00:03.5]} 74. Rh7
{[%clk 0:00:04.8]} 74... g4 {[%clk 0:00:03.1]} 75. Rg7 {[%clk 0:00:04.3]} 75...
g3 {[%clk 0:00:03.1]} 76. Kc5 {[%clk 0:00:05]} 76... Rh1 {[%clk 0:00:02.9]} 77.
Rxg3 {[%clk 0:00:04.9]} 77... h5 {[%clk 0:00:02.5]} 78. Kb5 {[%clk 0:00:04]}
78... Rb1+ {[%clk 0:00:02.7]} 79. Nb4 {[%clk 0:00:04.3]} 79... Kc8 {[%clk
0:00:03.2]} 80. Rh3 {[%clk 0:00:04.7]} 80... Kd8 {[%clk 0:00:03.6]} 81. Rh4
{[%clk 0:00:05.2]} 81... Ke7 {[%clk 0:00:04.5]} 82. Rxh5 {[%clk 0:00:05.9]}
82... Kf6 {[%clk 0:00:04.8]} 83. Rc5 {[%clk 0:00:06.3]} 83... Kg6 {[%clk
0:00:05.1]} 84. Kc4 {[%clk 0:00:07]} 84... Rc1+ {[%clk 0:00:04.5]} 85. Kb5
{[%clk 0:00:07.2]} 85... Rxc5+ {[%clk 0:00:04.5]} 86. Kxc5 {[%clk 0:00:08.1]}
1/2-1/2

[Event "Early-Titled-Tuesday-Blitz-October-10-2023"]
[Site "Chess.com"]
[Date "2023.10.10"]
[Round "4"]
[White "Semen_Khanin"]
[Black "GMZaven"]
[Result "1-0"]
[WhiteElo "2862"]
[BlackElo "2630"]
[TimeControl "180+1"]
[EndTime "8:39:58 PDT"]
[Termination "Semen_Khanin won by checkmate"]

1. e4 {[%clk 0:03:00.9]} 1... c5 {[%clk 0:02:59.1]} 2. Nf3 {[%clk 0:03:00.5]}
2... d6 {[%clk 0:02:59.1]} 3. Bb5+ {[%clk 0:03:00.2]} 3... Nc6 {[%clk
0:02:58.8]} 4. O-O {[%clk 0:02:59]} 4... Bd7 {[%clk 0:02:59.1]} 5. Re1 {[%clk
0:02:58.6]} 5... Nf6 {[%clk 0:02:58.2]} 6. c3 {[%clk 0:02:55.9]} 6... a6 {[%clk
0:02:58.6]} 7. Bf1 {[%clk 0:02:55.1]} 7... Bg4 {[%clk 0:02:58.9]} 8. d3 {[%clk
0:02:53.9]} 8... g6 {[%clk 0:02:57]} 9. Nbd2 {[%clk 0:02:54]} 9... Bg7 {[%clk
0:02:56.9]} 10. h3 {[%clk 0:02:54.3]} 10... Bd7 {[%clk 0:02:56.5]} 11. g3 {[%clk
0:02:49.3]} 11... O-O {[%clk 0:02:56]} 12. Bg2 {[%clk 0:02:49.5]} 12... e5
{[%clk 0:02:56.4]} 13. Nc4 {[%clk 0:02:43.3]} 13... Be6 {[%clk 0:02:56.3]} 14.
Bg5 {[%clk 0:02:40.6]} 14... h6 {[%clk 0:02:55.8]} 15. Bxf6 {[%clk 0:02:40.8]}
15... Bxf6 {[%clk 0:02:56.7]} 16. Nfd2 {[%clk 0:02:38.8]} 16... b5 {[%clk
0:02:55.7]} 17. Ne3 {[%clk 0:02:38.8]} 17... Bg7 {[%clk 0:02:55.5]} 18. a4
{[%clk 0:02:37.7]} 18... Rb8 {[%clk 0:02:55.7]} 19. axb5 {[%clk 0:02:37]} 19...
axb5 {[%clk 0:02:56.6]} 20. h4 {[%clk 0:02:23.3]} 20... h5 {[%clk 0:02:55.6]}
21. Kh2 {[%clk 0:02:19.4]} 21... Bh6 {[%clk 0:02:55.5]} 22. Ndf1 {[%clk
0:02:12.8]} 22... b4 {[%clk 0:02:54.8]} 23. Bh3 {[%clk 0:02:12.4]} 23... bxc3
{[%clk 0:02:54.4]} 24. bxc3 {[%clk 0:02:12.1]} 24... Rb2 {[%clk 0:02:54]} 25.
Re2 {[%clk 0:02:11.3]} 25... Rxe2 {[%clk 0:02:33.1]} 26. Qxe2 {[%clk 0:02:10.9]}
26... Bxh3 {[%clk 0:02:29.5]} 27. Kxh3 {[%clk 0:02:10.8]} 27... Bxe3 {[%clk
0:02:30]} 28. Nxe3 {[%clk 0:02:10.3]} 28... Ne7 {[%clk 0:02:30.3]} 29. Kg2
{[%clk 0:02:06.8]} 29... Qb6 {[%clk 0:02:26.4]} 30. Nc4 {[%clk 0:02:05.5]} 30...
Qc6 {[%clk 0:02:26.7]} 31. Qa2 {[%clk 0:02:02.3]} 31... Nc8 {[%clk 0:02:04]} 32.
Qa6 {[%clk 0:02:01.2]} 32... Qd7 {[%clk 0:02:03.9]} 33. Rb1 {[%clk 0:02:00]}
33... Qg4 {[%clk 0:02:03.5]} 34. Rb8 {[%clk 0:01:46.5]} 34... Qe6 {[%clk
0:02:01.3]} 35. Qc6 {[%clk 0:01:39.4]} 35... Kg7 {[%clk 0:02:00.1]} 36. Rb7
{[%clk 0:01:28.9]} 36... Rd8 {[%clk 0:01:45]} 37. Qc7 {[%clk 0:01:17.9]} 37...
Re8 {[%clk 0:01:41.8]} 38. Qd7 {[%clk 0:01:12]} 38... Kf6 {[%clk 0:01:36.5]} 39.
Qc6 {[%clk 0:00:59.4]} 39... Rd8 {[%clk 0:01:33.2]} 40. Ne3 {[%clk 0:00:58.4]}
40... Kg7 {[%clk 0:01:29.5]} 41. Nd5 {[%clk 0:00:58]} 41... Rf8 {[%clk
0:01:25.3]} 42. Rd7 {[%clk 0:00:54.1]} 42... Qg4 {[%clk 0:01:24.6]} 43. f3
{[%clk 0:00:45.8]} 43... Qe6 {[%clk 0:01:24.5]} 44. Qc7 {[%clk 0:00:40.9]} 44...
Kh6 {[%clk 0:01:21.7]} 45. c4 {[%clk 0:00:33.9]} 45... Kg7 {[%clk 0:01:19.7]}
46. Rd8 {[%clk 0:00:28.9]} 46... Re8 {[%clk 0:01:10.5]} 47. Rd7 {[%clk
0:00:17.9]} 47... Rf8 {[%clk 0:01:10.1]} 48. Qc6 {[%clk 0:00:17.3]} 48... Kh6
{[%clk 0:00:50.3]} 49. Nc7 {[%clk 0:00:17.2]} 49... Qf6 {[%clk 0:00:50.2]} 50.
Nb5 {[%clk 0:00:17.4]} 50... Rd8 {[%clk 0:00:39.9]} 51. Qc7 {[%clk 0:00:17.6]}
51... Rxd7 {[%clk 0:00:40.1]} 52. Qxd7 {[%clk 0:00:18.5]} 52... Qe6 {[%clk
0:00:40.3]} 53. Qd8 {[%clk 0:00:16.6]} 53... Kg7 {[%clk 0:00:40.6]} 54. Nc7
{[%clk 0:00:16.7]} 54... Qe7 {[%clk 0:00:34.6]} 55. Qxc8 {[%clk 0:00:16.8]}
55... g5 {[%clk 0:00:35.1]} 56. Nd5 {[%clk 0:00:16.1]} 56... Qa7 {[%clk
0:00:34.6]} 57. Qf5 {[%clk 0:00:13.9]} 57... Qa2+ {[%clk 0:00:33]} 58. Kh3
{[%clk 0:00:14.2]} 58... g4+ {[%clk 0:00:33.4]} 59. fxg4 {[%clk 0:00:14.2]}
59... Qb1 {[%clk 0:00:34.3]} 60. Qg5+ {[%clk 0:00:13.1]} 60... Kf8 {[%clk
0:00:34.1]} 61. Qh6+ {[%clk 0:00:12.4]} 61... Ke8 {[%clk 0:00:33.6]} 62. gxh5
{[%clk 0:00:10.8]} 62... Qh1+ {[%clk 0:00:27.8]} 63. Kg4 {[%clk 0:00:10.9]}
63... Qd1+ {[%clk 0:00:27.9]} 64. Kf5 {[%clk 0:00:05.3]} 64... Qf1+ {[%clk
0:00:23.5]} 65. Kg5 {[%clk 0:00:04.7]} 65... Qc1+ {[%clk 0:00:22.9]} 66. Nf4
{[%clk 0:00:04.5]} 66... exf4 {[%clk 0:00:22.8]} 67. gxf4 {[%clk 0:00:05]} 67...
Qc3 {[%clk 0:00:18.1]} 68. Qf6 {[%clk 0:00:04.6]} 68... Qxd3 {[%clk 0:00:18]}
69. h6 {[%clk 0:00:05]} 69... Qxe4 {[%clk 0:00:17.8]} 70. Qf5 {[%clk 0:00:04]}
70... Qg2+ {[%clk 0:00:16.6]} 71. Qg4 {[%clk 0:00:03.2]} 71... Qc2 {[%clk
0:00:12.5]} 72. Kh5 {[%clk 0:00:03.6]} 72... Ke7 {[%clk 0:00:10.2]} 73. Qg5+
{[%clk 0:00:03.8]} 73... Ke6 {[%clk 0:00:08.4]} 74. f5+ {[%clk 0:00:03.6]} 74...
Ke5 {[%clk 0:00:07.8]} 75. h7 {[%clk 0:00:03.8]} 75... Qd1+ {[%clk 0:00:05]} 76.
Kh6 {[%clk 0:00:04.1]} 76... Ke4 {[%clk 0:00:04.2]} 77. h8=Q {[%clk 0:00:04.1]}
77... Qd3 {[%clk 0:00:05]} 78. Qe8+ {[%clk 0:00:04]} 78... Kf3 {[%clk
0:00:05.3]} 79. Qxf7 {[%clk 0:00:03.9]} 79... Qd4 {[%clk 0:00:05.3]} 80. Qfh5+
{[%clk 0:00:03.8]} 80... Kf2 {[%clk 0:00:04.9]} 81. f6 {[%clk 0:00:03]} 81...
Qe4 {[%clk 0:00:04.9]} 82. Qf5+ {[%clk 0:00:03.2]} 82... Qxf5 {[%clk 0:00:04.4]}
83. Qxf5+ {[%clk 0:00:03.1]} 83... Ke3 {[%clk 0:00:05.3]} 84. f7 {[%clk
0:00:03.4]} 84... Kd4 {[%clk 0:00:06.2]} 85. Qd5+ {[%clk 0:00:03.3]} 85... Kc3
{[%clk 0:00:06.3]} 86. f8=Q {[%clk 0:00:03.5]} 86... Kb4 {[%clk 0:00:07.2]} 87.
Qfxd6 {[%clk 0:00:03.5]} 87... Ka5 {[%clk 0:00:08.1]} 88. Q6xc5+ {[%clk
0:00:03.4]} 88... Ka4 {[%clk 0:00:08]} 89. Qb5+ {[%clk 0:00:03.6]} 89... Ka3
{[%clk 0:00:08.4]} 90. Qa8# {[%clk 0:00:04.5]} 1-0

[Event "Early-Titled-Tuesday-Blitz-October-10-2023"]
[Site "Chess.com"]
[Date "2023.10.10"]
[Round "4"]
[White "Herman-NY"]
[Black "AlexPapasimakopoulos"]
[Result "1-0"]
[WhiteElo "2539"]
[BlackElo "2698"]
[TimeControl "180+1"]
[EndTime "8:40:00 PDT"]
[Termination "Herman-NY won by resignation"]

1. e4 {[%clk 0:03:00.9]} 1... e6 {[%clk 0:02:55.8]} 2. d4 {[%clk 0:03:01.2]}
2... d5 {[%clk 0:02:55.8]} 3. e5 {[%clk 0:03:01.2]} 3... Bd7 {[%clk 0:02:50.1]}
4. h4 {[%clk 0:02:57.5]} 4... c5 {[%clk 0:02:49]} 5. c3 {[%clk 0:02:57.7]} 5...
Nc6 {[%clk 0:02:48.8]} 6. Nf3 {[%clk 0:02:56.4]} 6... Qb6 {[%clk 0:02:43.4]} 7.
a3 {[%clk 0:02:42.9]} 7... cxd4 {[%clk 0:02:41.4]} 8. cxd4 {[%clk 0:02:43.2]}
8... Nge7 {[%clk 0:02:40.4]} 9. b4 {[%clk 0:02:34.1]} 9... Nf5 {[%clk
0:02:36.9]} 10. Bb2 {[%clk 0:02:31.4]} 10... Na5 {[%clk 0:02:32.8]} 11. g4
{[%clk 0:02:06.7]} 11... Ne7 {[%clk 0:02:31]} 12. h5 {[%clk 0:02:07]} 12... Nc4
{[%clk 0:02:29.6]} 13. Bc3 {[%clk 0:02:03.4]} 13... Rc8 {[%clk 0:02:18.5]} 14.
Bd3 {[%clk 0:01:24.3]} 14... h6 {[%clk 0:02:13.2]} 15. Qb3 {[%clk 0:00:33.8]}
15... a5 {[%clk 0:02:06.6]} 16. Nbd2 {[%clk 0:00:26.6]} 16... a4 {[%clk
0:02:05.1]} 17. Qc2 {[%clk 0:00:18.4]} 17... Bb5 {[%clk 0:01:49]} 18. Nxc4
{[%clk 0:00:10.9]} 18... dxc4 {[%clk 0:01:46.7]} 19. Be4 {[%clk 0:00:11.1]}
19... Nd5 {[%clk 0:01:47]} 20. Bxd5 {[%clk 0:00:11.5]} 20... exd5 {[%clk
0:01:47.9]} 21. O-O {[%clk 0:00:09.4]} 21... Bd7 {[%clk 0:01:47]} 22. Nh2 {[%clk
0:00:09.2]} 22... Be7 {[%clk 0:01:44.7]} 23. f4 {[%clk 0:00:09.5]} 23... g6
{[%clk 0:01:30.9]} 24. f5 {[%clk 0:00:07]} 24... gxf5 {[%clk 0:01:28.5]} 25.
gxf5 {[%clk 0:00:07.3]} 25... Rg8+ {[%clk 0:01:26.5]} 26. Kh1 {[%clk 0:00:07.8]}
26... Bg5 {[%clk 0:01:24.1]} 27. Rae1 {[%clk 0:00:06.9]} 27... Kd8 {[%clk
0:01:12.6]} 28. Ng4 {[%clk 0:00:04.2]} 28... Bh4 {[%clk 0:01:10.2]} 29. Ne3
{[%clk 0:00:02.7]} 29... Bxe1 {[%clk 0:01:05.1]} 30. Rxe1 {[%clk 0:00:03]} 30...
Qc6 {[%clk 0:01:04.5]} 31. Qh2 {[%clk 0:00:02.9]} 31... Rg5 {[%clk 0:00:59.2]}
32. Rg1 {[%clk 0:00:02.7]} 32... Rxg1+ {[%clk 0:00:56.8]} 33. Kxg1 {[%clk
0:00:03.6]} 33... Rc7 {[%clk 0:00:33.5]} 34. Qg3 {[%clk 0:00:03.5]} 34... Be8
{[%clk 0:00:32.3]} 35. Qg7 {[%clk 0:00:03.3]} 35... f6 {[%clk 0:00:29.7]} 36.
Qh8 {[%clk 0:00:03.7]} 36... fxe5 {[%clk 0:00:29.3]} 37. dxe5 {[%clk 0:00:04.6]}
37... d4 {[%clk 0:00:29.6]} 38. Bxd4 {[%clk 0:00:04.9]} 38... Rd7 {[%clk
0:00:24.4]} 39. Bc5 {[%clk 0:00:04.6]} 39... Rd2 {[%clk 0:00:19.9]} 40. e6
{[%clk 0:00:02.4]} 40... b6 {[%clk 0:00:19.6]} 41. Qf6+ {[%clk 0:00:02.5]} 41...
Kc8 {[%clk 0:00:19.6]} 42. Bd4 {[%clk 0:00:01.7]} 42... Qf3 {[%clk 0:00:18]} 43.
Qe5 {[%clk 0:00:02.1]} 43... Qf2+ {[%clk 0:00:18.3]} 44. Kh1 {[%clk 0:00:01.9]}
44... Qf3+ {[%clk 0:00:17.7]} 45. Kg1 {[%clk 0:00:02.3]} 45... Qf2+ {[%clk
0:00:16.4]} 46. Kh1 {[%clk 0:00:02.8]} 46... Qh4+ {[%clk 0:00:17.2]} 47. Kg1
{[%clk 0:00:03.2]} 47... Qxd4 {[%clk 0:00:14.7]} 48. Qxd4 {[%clk 0:00:03.2]}
48... Rxd4 {[%clk 0:00:15.6]} 49. f6 {[%clk 0:00:03.9]} 49... Rf4 {[%clk
0:00:15.5]} 50. Nd5 {[%clk 0:00:04.3]} 50... Rf5 {[%clk 0:00:14.8]} 51. Ne7+
{[%clk 0:00:04.8]} 51... Kd8 {[%clk 0:00:14.7]} 52. Nxf5 {[%clk 0:00:05.7]}
52... Bxh5 {[%clk 0:00:14.4]} 53. Nd4 {[%clk 0:00:06.1]} 53... c3 {[%clk
0:00:14.4]} 54. Kf2 {[%clk 0:00:06.6]} 54... Ke8 {[%clk 0:00:14.8]} 55. Ke3
{[%clk 0:00:07.1]} 55... Bg6 {[%clk 0:00:15.2]} 56. Ke2 {[%clk 0:00:07.2]} 56...
h5 {[%clk 0:00:15.7]} 57. Kf3 {[%clk 0:00:05.9]} 57... c2 {[%clk 0:00:15.2]} 58.
Ne2 {[%clk 0:00:06.2]} 58... h4 {[%clk 0:00:14.7]} 59. Kg4 {[%clk 0:00:06.1]}
59... Bh5+ {[%clk 0:00:14.6]} 60. Kxh5 {[%clk 0:00:06]} 60... h3 {[%clk
0:00:15.3]} 61. Kg6 {[%clk 0:00:06.6]} 61... h2 {[%clk 0:00:15.8]} 62. Kg7
{[%clk 0:00:07]} 62... h1=Q {[%clk 0:00:16]} 63. f7+ {[%clk 0:00:07.9]} 63...
Ke7 {[%clk 0:00:16.4]} 64. f8=Q+ {[%clk 0:00:08.8]} 64... Kxe6 {[%clk 0:00:17]}
65. Qf6+ {[%clk 0:00:09.2]} 65... Kd5 {[%clk 0:00:17]} 66. Qd4+ {[%clk
0:00:09.6]} 66... Kc6 {[%clk 0:00:17.6]} 67. Qc3+ {[%clk 0:00:09.7]} 67... Kb7
{[%clk 0:00:18.2]} 68. Qxc2 {[%clk 0:00:09.9]} 68... Qg2+ {[%clk 0:00:18.5]} 69.
Kf6 {[%clk 0:00:10.5]} 69... Qf3+ {[%clk 0:00:19.1]} 70. Ke5 {[%clk 0:00:11]}
70... Qxa3 {[%clk 0:00:19.8]} 71. Qe4+ {[%clk 0:00:09.7]} 71... Ka7 {[%clk
0:00:19.9]} 72. Nf4 {[%clk 0:00:10.2]} 72... Qc3+ {[%clk 0:00:19.7]} 73. Kd6
{[%clk 0:00:09.6]} 73... a3 {[%clk 0:00:19.3]} 74. Nd5 {[%clk 0:00:10]} 74...
Qc8 {[%clk 0:00:18.9]} 75. Qe7+ {[%clk 0:00:10]} 75... Qb7 {[%clk 0:00:19.2]}
76. Nc7 {[%clk 0:00:09.7]} 76... a2 {[%clk 0:00:18.5]} 77. Qe1 {[%clk
0:00:09.7]} 77... Qg2 {[%clk 0:00:17.4]} 78. Qc3 {[%clk 0:00:09.2]} 78... Qg6+
{[%clk 0:00:16.8]} 79. Kd7 {[%clk 0:00:09]} 79... Qf7+ {[%clk 0:00:16.7]} 80.
Kc8 {[%clk 0:00:08.8]} 80... Qf8+ {[%clk 0:00:16.9]} 81. Kd7 {[%clk 0:00:09]}
81... Qf7+ {[%clk 0:00:17.1]} 82. Kc8 {[%clk 0:00:09.4]} 82... Qg8+ {[%clk
0:00:17.6]} 83. Kd7 {[%clk 0:00:09.5]} 83... Qg4+ {[%clk 0:00:18.1]} 84. Kd8
{[%clk 0:00:09.5]} 84... Qg5+ {[%clk 0:00:16.9]} 85. Kd7 {[%clk 0:00:09.6]}
85... Qf5+ {[%clk 0:00:16.6]} 86. Kd8 {[%clk 0:00:08.8]} 86... Qf8+ {[%clk
0:00:16.3]} 87. Kd7 {[%clk 0:00:09]} 87... Qf5+ {[%clk 0:00:16.1]} 88. Ne6
{[%clk 0:00:08.6]} 88... Qd5+ {[%clk 0:00:15.9]} 89. Ke7 {[%clk 0:00:08.2]}
89... Ka6 {[%clk 0:00:15]} 90. Qa3+ {[%clk 0:00:07.6]} 90... Kb5 {[%clk
0:00:15.2]} 91. Nc7+ {[%clk 0:00:07.9]} 91... Kc6 {[%clk 0:00:14.5]} 92. Nxd5
{[%clk 0:00:08.8]} 92... a1=Q {[%clk 0:00:15.4]} 93. Qxa1 {[%clk 0:00:09.2]}
93... Kxd5 {[%clk 0:00:15.9]} 94. Qc3 {[%clk 0:00:09.5]} 94... b5 {[%clk
0:00:16.8]} 95. Kd7 {[%clk 0:00:10]} 95... Ke4 {[%clk 0:00:16.6]} 96. Kc7 {[%clk
0:00:10.9]} 96... Kd5 {[%clk 0:00:16.4]} 97. Kb6 {[%clk 0:00:11.8]} 97... Ke6
{[%clk 0:00:16.2]} 98. Kxb5 {[%clk 0:00:12.7]} 98... Kd5 {[%clk 0:00:17.1]} 99.
Ka4 {[%clk 0:00:13.6]} 1-0

[Event "Early-Titled-Tuesday-Blitz-October-10-2023"]
[Site "Chess.com"]
[Date "2023.10.10"]
[Round "5"]
[White "Djager97"]
[Black "stasOR4ik"]
[Result "1-0"]
[WhiteElo "2579"]
[BlackElo "2437"]
[TimeControl "180+1"]
[EndTime "8:49:30 PDT"]
[Termination "Djager97 won by resignation"]

1. e4 {[%clk 0:03:00.9]} 1... e6 {[%clk 0:02:59.5]} 2. d4 {[%clk 0:03:00]} 2...
d5 {[%clk 0:03:00.4]} 3. exd5 {[%clk 0:03:00.4]} 3... exd5 {[%clk 0:03:00.8]} 4.
Nf3 {[%clk 0:03:01]} 4... Nc6 {[%clk 0:03:00.6]} 5. Bd3 {[%clk 0:03:00.2]} 5...
Bg4 {[%clk 0:03:00.8]} 6. c3 {[%clk 0:02:59.7]} 6... Bd6 {[%clk 0:02:59.5]} 7.
O-O {[%clk 0:02:58.1]} 7... Nge7 {[%clk 0:02:58.6]} 8. Bg5 {[%clk 0:02:52.5]}
8... h6 {[%clk 0:02:56.7]} 9. Bh4 {[%clk 0:02:52.1]} 9... g5 {[%clk 0:02:56.8]}
10. Bg3 {[%clk 0:02:52.1]} 10... f5 {[%clk 0:02:57]} 11. Bxd6 {[%clk 0:02:39.8]}
11... Qxd6 {[%clk 0:02:57.9]} 12. Nbd2 {[%clk 0:02:37.2]} 12... O-O-O {[%clk
0:02:52.1]} 13. b4 {[%clk 0:02:37.2]} 13... Rdf8 {[%clk 0:02:40.4]} 14. b5
{[%clk 0:02:36.7]} 14... Na5 {[%clk 0:02:37]} 15. Qa4 {[%clk 0:02:36]} 15... Qb6
{[%clk 0:02:27.2]} 16. Ne5 {[%clk 0:02:34.8]} 16... Bh5 {[%clk 0:02:17.1]} 17.
Nb3 {[%clk 0:02:28.4]} 17... Nxb3 {[%clk 0:02:15.7]} 18. axb3 {[%clk 0:02:29.3]}
18... Ng6 {[%clk 0:01:56.6]} 19. Nxg6 {[%clk 0:02:23.9]} 19... Bxg6 {[%clk
0:01:56.8]} 20. Qxa7 {[%clk 0:02:24.5]} 20... Qa6 {[%clk 0:01:52.4]} 21. bxa6
{[%clk 0:02:23.6]} 1-0

[Event "Early-Titled-Tuesday-Blitz-October-10-2023"]
[Site "Chess.com"]
[Date "2023.10.10"]
[Round "5"]
[White "VincentKeymer"]
[Black "McCarthyStone"]
[Result "1-0"]
[WhiteElo "3088"]
[BlackElo "2414"]
[TimeControl "180+1"]
[EndTime "8:50:15 PDT"]
[Termination "VincentKeymer won by resignation"]

1. Nf3 {[%clk 0:03:00.9]} 1... g6 {[%clk 0:02:58.3]} 2. c4 {[%clk 0:03:01.3]}
2... Bg7 {[%clk 0:02:58.4]} 3. Nc3 {[%clk 0:03:02.2]} 3... e5 {[%clk 0:02:58.8]}
4. g3 {[%clk 0:03:02.3]} 4... Ne7 {[%clk 0:02:58.9]} 5. Bg2 {[%clk 0:03:02.3]}
5... O-O {[%clk 0:02:58.6]} 6. O-O {[%clk 0:03:02.7]} 6... c6 {[%clk 0:02:59.1]}
7. d4 {[%clk 0:03:02.1]} 7... exd4 {[%clk 0:02:58]} 8. Nxd4 {[%clk 0:03:03]}
8... d5 {[%clk 0:02:57.6]} 9. cxd5 {[%clk 0:03:02.6]} 9... Nxd5 {[%clk
0:02:58.2]} 10. Nxd5 {[%clk 0:03:02]} 10... cxd5 {[%clk 0:02:59.1]} 11. Be3
{[%clk 0:03:02.5]} 11... Nc6 {[%clk 0:02:59.4]} 12. Rc1 {[%clk 0:03:03.1]} 12...
Re8 {[%clk 0:02:56.5]} 13. Nxc6 {[%clk 0:03:00]} 13... bxc6 {[%clk 0:02:57.4]}
14. Rxc6 {[%clk 0:03:00.3]} 14... Bxb2 {[%clk 0:02:57.5]} 15. Qxd5 {[%clk
0:02:56.7]} 15... Qxd5 {[%clk 0:02:57.5]} 16. Bxd5 {[%clk 0:02:57.6]} 16... Bb7
{[%clk 0:02:50.2]} 17. Rd6 {[%clk 0:02:57.6]} 17... Bxd5 {[%clk 0:02:38.9]} 18.
Rxd5 {[%clk 0:02:58.5]} 18... Rac8 {[%clk 0:02:23.7]} 19. Rb1 {[%clk 0:02:54.1]}
19... Rc2 {[%clk 0:02:22.6]} 20. Rd2 {[%clk 0:02:54.2]} 20... Rc1+ {[%clk
0:02:08.9]} 21. Rd1 {[%clk 0:02:54.5]} 21... Rc2 {[%clk 0:01:58.3]} 22. Kf1
{[%clk 0:02:54.7]} 22... Bf6 {[%clk 0:01:46.1]} 23. Rd2 {[%clk 0:02:53]} 23...
Rc7 {[%clk 0:01:33.1]} 24. Rd6 {[%clk 0:02:49.4]} 24... Kg7 {[%clk 0:01:26.8]}
25. Ra6 {[%clk 0:02:48.3]} 25... Ree7 {[%clk 0:01:27.3]} 26. h4 {[%clk
0:02:43.6]} 26... Be5 {[%clk 0:01:23.5]} 27. Rb3 {[%clk 0:02:42.4]} 27... h5
{[%clk 0:01:22.1]} 28. Rba3 {[%clk 0:02:41.3]} 28... Rc1+ {[%clk 0:01:12.1]} 29.
Bxc1 {[%clk 0:02:40.7]} 29... Bd4 {[%clk 0:01:10.1]} 30. Be3 {[%clk 0:02:39]}
30... Bxe3 {[%clk 0:01:10.1]} 31. Rxe3 {[%clk 0:02:39.9]} 31... Rb7 {[%clk
0:01:10.1]} 32. Rea3 {[%clk 0:02:40]} 1-0